Workbook

Sheet Feuil1
A1: =INT(6*RAND())+1 -> 4
A2: =INT(6*RAND())+1 -> 4
A3: 2 | D3: 1 | E3: 2 | F3: 3 | G3: 4 | H3: 5 | I3: 6
A4: 6 | C4: 100 fois | D4: =COUNTIF(A1:A100,1) -> 16 | E4: =COUNTIF(A1:A100,2) -> 15 | F4: =COUNTIF(A1:A100,3) -> 15 | G4: =COUNTIF(A1:A100,4) -> 16 | H4: =COUNTIF(A1:A100,5) -> 20 | I4: =COUNTIF(A1:A100,6) -> 18 | J4: =SUM(D4:I4) -> 100
A5: 5 | C5: 200 fois | D5: =COUNTIF(A1:A200,1) -> 24 | E5: =COUNTIF(A1:A200,2) -> 28 | F5: =COUNTIF(A1:A200,3) -> 33 | G5: =COUNTIF(A1:A200,4) -> 32 | H5: =COUNTIF(A1:A200,5) -> 43 | I5: =COUNTIF(A1:A200,6) -> 40 | J5: =SUM(D5:I5) -> 200
A6: 2 | C6: 500 fois | D6: =COUNTIF(A1:A500,1) -> 74 | E6: =COUNTIF(A1:A500,2) -> 73 | F6: =COUNTIF(A1:A500,3) -> 79 | G6: =COUNTIF(A1:A500,4) -> 82 | H6: =COUNTIF(A1:A500,5) -> 96 | I6: =COUNTIF(A1:A500,6) -> 96 | J6: 500
A7: 5 | C7: 1000 fois | D7: =COUNTIF(A1:A1000,1) -> 166 | E7: =COUNTIF(A1:A1000,2) -> 161 | F7: =COUNTIF(A1:A1000,3) -> 171 | G7: =COUNTIF(A1:A1000,4) -> 165 | H7: =COUNTIF(A1:A1000,5) -> 169 | I7: =COUNTIF(A1:A1000,6) -> 168 | J7: 1000
A8: 1 | C8: 2000 fois | D8: =COUNTIF(A1:A2000,1) -> 329 | E8: =COUNTIF(A1:A2000,2) -> 315 | F8: =COUNTIF(A1:A2000,3) -> 327 | G8: =COUNTIF(A1:A2000,4) -> 352 | H8: =COUNTIF(A1:A2000,5) -> 333 | I8: =COUNTIF(A1:A2000,6) -> 344 | J8: 2000
A9: 5
A10: 1
A11: 3
A12: 4 | D12: 1 | E12: 2 | F12: 3 | G12: 4 | H12: 5 | I12: 6
A13: 5 | C13: 100 fois | D13: =D4/100 -> 0.16 | E13: =E4/100 -> 0.15 | F13: 0.15 | G13: 0.16 | H13: 0.2 | I13: 0.18 | J13: =SUM(D13:I13) -> 1
A14: 5 | C14: 200 fois | D14: =D5/200 -> 0.12 | E14: =E5/200 -> 0.14 | F14: 0.165 | G14: 0.16 | H14: 0.215 | I14: 0.2 | J14: =SUM(D14:I14) -> 1
A15: 1 | C15: 500 fois | D15: =D6/500 -> 0.148 | E15: =E6/500 -> 0.146 | F15: 0.158 | G15: 0.164 | H15: 0.192 | I15: 0.192 | J15: 1
A16: 5 | C16: 1000 fois | D16: =D7/1000 -> 0.166 | E16: =E7/1000 -> 0.161 | F16: 0.171 | G16: 0.165 | H16: 0.169 | I16: 0.168 | J16: 1
A17: 5 | C17: 2000 fois | D17: =D8/2000 -> 0.1645 | E17: =E8/2000 -> 0.1575 | F17: 0.1635 | G17: 0.176 | H17: 0.1665 | I17: 0.172 | J17: 1
A18: 3
A19: 4
A20: 6
A21: 1
A22: 3
A23: 3
A24: 5
A25: 4
A26: 6
A27: 5
A28: 6
A29: 4
A30: 6
A31: 1 | C31: Appuyer sur F9 pour relancer les dés
A32: 2
A33: 1
A34: 6
A35: 2
A36: 2
A37: 1
A38: 3
A39: 6
A40: 6
A41: 2
A42: 5
A43: 5
A44: 6
A45: 3
A46: 4
A47: 5
A48: 6
A49: 5
A50: 6
A51: 1
A52: 5
A53: 2
A54: 5
A55: 4
A56: 4
A57: 2
A58: 6
A59: 3
A60: 1
A61: 3
A62: 4
A63: 4
A64: 6
A65: 6
A66: =INT(6*RAND())+1 -> 6
A67: 2
A68: 3
A69: 4
A70: 5
A71: 6
A72: 6
A73: 1
A74: 1
A75: 3
A76: 2
A77: 2
A78: 3
A79: 5
A80: 1
A81: 5
A82: 1
A83: 4
A84: 2
A85: 6
A86: 3
A87: 1
A88: 4
A89: 2
A90: 3
A91: 2
A92: 5
A93: 1
A94: 4
A95: 4
A96: 1
A97: 3
A98: 5
A99: 3
A100: 2
A101: 4
A102: 5
A103: 5
A104: 5
A105: 5
A106: 1
A107: 3
A108: 6
A109: 4
A110: 6
A111: 5
A112: 1
A113: 4
A114: 3
A115: 4
A116: 6
A117: 6
A118: 1
A119: 3
A120: 4
A121: 6
A122: 5
A123: 5
A124: 4
A125: 5
A126: 1
A127: 5
A128: 5
A129: 6
A130: =INT(6*RAND())+1 -> 2
A131: 6
A132: 2
A133: 3
A134: 6
A135: 6
A136: 3
A137: 2
A138: 4
A139: 6
A140: 3
A141: 6
A142: 6
A143: 3
A144: 2
A145: 4
A146: 5
A147: 3
A148: 6
A149: 2
A150: 2
A151: 4
A152: 2
A153: 3
A154: 6
A155: 5
A156: 2
A157: 5
A158: 6
A159: 1
A160: 3
A161: 4
A162: 6
A163: 2
A164: 3
A165: 4
A166: 6
A167: 5
A168: 6
A169: 3
A170: 5
A171: 4
A172: 2
A173: 6
A174: 4
A175: 5
A176: 3
A177: 5
A178: 6
A179: 5
A180: 2
A181: 6
A182: 1
A183: 5
A184: 3
A185: 6
A186: 3
A187: 1
A188: 5
A189: 3
A190: 4
A191: 2
A192: 3
A193: 2
A194: =INT(6*RAND())+1 -> 3
A195: 4
A196: 5
A197: 4
A198: 5
A199: 5
A200: 1
... 1800 more rows

Sheet Feuil2

Sheet Feuil3
